[Event "2026 Biel Blitz Open"]
[Site "Biel, CH"]
[Date "2026.07.19"]
[Round "7"]
[White "Dong, Hongfu"]
[Black "Kozak, Adam"]
[Result "1-0"]
[Board "3"]
[TimeControl "180+2"]
[WhiteFideId "8626960"]
[BlackFideId "753246"]
[WhiteElo "2290"]
[BlackElo "2537"]
[BlackTitle "GM"]
[WhiteClock "0:00:26"]
[BlackClock "0:00:03"]
[Variant "Standard"]
[EndDate "2026.07.19"]
[EndTime "13:57:36"]

1. e4 {[%clk 0:03:03]}  e5 {[%clk 0:03:03]} 2. Nf3 {[%clk 0:03:04]}  Nc6 {[%clk 0:03:04]} 3. Bc4 {[%clk 0:03:04]}  Bc5 {[%clk 0:03:04]}
4. c3 {[%clk 0:03:05]}  Nf6 {[%clk 0:03:04]} 5. d3 {[%clk 0:03:06]}  d6 {[%clk 0:03:04]} 6. O-O {[%clk 0:03:03]}  a5 {[%clk 0:03:04]}
7. Re1 {[%clk 0:03:07]}  Ba7 {[%clk 0:03:04]} 8. Nbd2 {[%clk 0:03:07]}  O-O {[%clk 0:03:04]} 9. h3 {[%clk 0:03:01]}  Be6 {[%clk 0:03:04]}
10. Bb5 {[%clk 0:03:02]}  Ne7 {[%clk 0:03:05]} 11. d4 {[%clk 0:03:01]}  Ng6 {[%clk 0:03:04]} 12. Ba4 {[%clk 0:03:00]}  Nh5 {[%clk 0:02:26]}
13. Nf1 {[%clk 0:02:56]}  Nhf4 {[%clk 0:02:25]} 14. Ng3 {[%clk 0:02:54]}  Qf6 {[%clk 0:02:15]} 15. Bc2 {[%clk 0:01:50]}  Rfe8 {[%clk 0:01:17]}
16. Nh5 {[%clk 0:01:26]}  Qe7 {[%clk 0:00:55]} 17. Nxf4 {[%clk 0:01:26]}  Nxf4 {[%clk 0:00:51]} 18. Bxf4 {[%clk 0:01:16]}  exf4 {[%clk 0:00:52]}
19. e5 {[%clk 0:01:18]}  dxe5 {[%clk 0:00:38]} 20. Rxe5 {[%clk 0:01:08]}  Qf6 {[%clk 0:00:33]} 21. Qd3 {[%clk 0:00:59]}  g6 {[%clk 0:00:33]}
22. Rae1 {[%clk 0:01:00]}  c6 {[%clk 0:00:33]} 23. Rxa5 {[%clk 0:00:52]}  b5 {[%clk 0:00:20]} 24. Ne5 {[%clk 0:00:49]}  Bd5 {[%clk 0:00:16]}
25. Bb3 {[%clk 0:00:48]}  Qe6 {[%clk 0:00:04]} 26. Ra6 {[%clk 0:00:25]}  Bxb3 {[%clk 0:00:03]} 27. axb3 {[%clk 0:00:26]}  Qxb3 {[%clk 0:00:00]} 1-0

[Event "2026 Biel Blitz Open"]
[Site "Biel, CH"]
[Date "2026.07.19"]
[Round "7"]
[White "Ghosh, Diptayan"]
[Black "Kukushkin, Ivan"]
[Result "1-0"]
[Board "4"]
[TimeControl "180+2"]
[WhiteFideId "5045207"]
[BlackFideId "11634103"]
[WhiteElo "2530"]
[BlackElo "2265"]
[WhiteTitle "GM"]
[BlackTitle "FM"]
[WhiteClock "0:00:09"]
[BlackClock "0:01:01"]
[Variant "Standard"]
[EndDate "2026.07.19"]
[EndTime "14:03:04"]

1. c4 {[%clk 0:03:02]}  e5 {[%clk 0:03:03]} 2. Nc3 {[%clk 0:03:00]}  Bb4 {[%clk 0:03:04]} 3. Nd5 {[%clk 0:03:01]}  Be7 {[%clk 0:03:03]}
4. Nf3 {[%clk 0:02:58]}  Nc6 {[%clk 0:03:05]} 5. e3 {[%clk 0:02:48]}  Nf6 {[%clk 0:03:00]} 6. a3 {[%clk 0:02:46]}  d6 {[%clk 0:03:01]}
7. Nc3 {[%clk 0:02:45]}  Be6 {[%clk 0:02:58]} 8. Be2 {[%clk 0:02:42]}  O-O {[%clk 0:02:57]} 9. O-O {[%clk 0:02:42]}  d5 {[%clk 0:02:53]}
10. cxd5 {[%clk 0:02:39]}  Nxd5 {[%clk 0:02:54]} 11. Qc2 {[%clk 0:02:40]}  a6 {[%clk 0:02:46]} 12. b4 {[%clk 0:02:37]}  f5 {[%clk 0:02:09]}
13. Nxd5 {[%clk 0:02:19]}  Bxd5 {[%clk 0:02:05]} 14. d3 {[%clk 0:02:19]}  e4 {[%clk 0:01:36]} 15. dxe4 {[%clk 0:02:16]}  fxe4 {[%clk 0:01:35]}
16. Nd2 {[%clk 0:02:13]}  Bf6 {[%clk 0:01:35]} 17. Bb2 {[%clk 0:02:11]}  Bxb2 {[%clk 0:01:31]} 18. Qxb2 {[%clk 0:02:12]}  Qg5 {[%clk 0:01:23]}
19. Rac1 {[%clk 0:02:03]}  Ne5 {[%clk 0:01:15]} 20. Rxc7 {[%clk 0:01:24]}  Rad8 {[%clk 0:00:47]} 21. Kh1 {[%clk 0:01:17]}  Bc6 {[%clk 0:00:40]}
22. Qc3 {[%clk 0:00:57]}  Kh8 {[%clk 0:00:23]} 23. a4 {[%clk 0:00:46]}  Rd6 {[%clk 0:00:11]} 24. b5 {[%clk 0:00:40]}  axb5 {[%clk 0:00:12]}
25. axb5 {[%clk 0:00:41]}  Bd5 {[%clk 0:00:10]} 26. Rc8 {[%clk 0:00:29]}  Rdf6 {[%clk 0:00:08]} 27. Rxf8+ {[%clk 0:00:30]}  Rxf8 {[%clk 0:00:09]}
28. Qd4 {[%clk 0:00:28]}  Ng6 {[%clk 0:00:09]} 29. Nxe4 {[%clk 0:00:26]}  Qf5 {[%clk 0:00:09]} 30. Ng3 {[%clk 0:00:23]}  Qe6 {[%clk 0:00:10]}
31. e4 {[%clk 0:00:21]}  Bb3 {[%clk 0:00:11]} 32. Bf3 {[%clk 0:00:09]}  Ne5 {[%clk 0:00:11]} 33. Be2 {[%clk 0:00:10]}  h6 {[%clk 0:00:09]}
34. Kg1 {[%clk 0:00:11]}  Qf6 {[%clk 0:00:10]} 35. Qe3 {[%clk 0:00:10]}  Be6 {[%clk 0:00:10]} 36. h3 {[%clk 0:00:10]}  Rc8 {[%clk 0:00:09]}
37. Rd1 {[%clk 0:00:10]}  Ng6 {[%clk 0:00:06]} 38. Nh5 {[%clk 0:00:09]}  Qe5 {[%clk 0:00:07]} 39. f4 {[%clk 0:00:10]}  Qb2 {[%clk 0:00:06]}
40. f5 {[%clk 0:00:10]}  Rc3 {[%clk 0:00:06]} 41. Rd8+ {[%clk 0:00:06]}  Bg8 {[%clk 0:00:08]} 42. Qd4 {[%clk 0:00:03]}  Qc1+ {[%clk 0:00:08]}
43. Kh2 {[%clk 0:00:04]}  Rc7 {[%clk 0:00:08]} 44. fxg6 {[%clk 0:00:05]}  Qg5 {[%clk 0:01:01]} 45. Ng3 {[%clk 0:00:05]}  Qxg6 {[%clk 0:01:01]}
46. Nf5 {[%clk 0:00:06]}  Rf7 {[%clk 0:01:00]} 47. Bf3 {[%clk 0:00:07]}  b6 {[%clk 0:01:00]} 48. Rd6 {[%clk 0:00:09]}  Qg5 {[%clk 0:01:01]}
49. Rxh6+ {[%clk 0:00:09]} 1-0

[Event "2026 Biel Blitz Open"]
[Site "Biel, CH"]
[Date "2026.07.19"]
[Round "7"]
[White "Gautier, Anand"]
[Black "Elmi, Saad Abobaker"]
[Result "1/2-1/2"]
[Board "5"]
[TimeControl "180+2"]
[WhiteFideId "26010186"]
[BlackFideId "1553259"]
[WhiteElo "2198"]
[BlackElo "2409"]
[WhiteTitle "FM"]
[BlackTitle "IM"]
[WhiteClock "0:00:10"]
[BlackClock "0:00:45"]
[Variant "Standard"]
[EndDate "2026.07.19"]
[EndTime "13:59:36"]

1. e4 {[%clk 0:03:03]}  g6 {[%clk 0:03:04]} 2. d4 {[%clk 0:03:04]}  Bg7 {[%clk 0:03:04]} 3. Nc3 {[%clk 0:03:04]}  c6 {[%clk 0:03:05]}
4. Nf3 {[%clk 0:02:57]}  d5 {[%clk 0:03:06]} 5. h3 {[%clk 0:02:58]}  dxe4 {[%clk 0:03:07]} 6. Nxe4 {[%clk 0:02:59]}  Nf6 {[%clk 0:03:08]}
7. Nxf6+ {[%clk 0:02:54]}  exf6 {[%clk 0:03:08]} 8. Bc4 {[%clk 0:02:45]}  O-O {[%clk 0:03:08]} 9. O-O {[%clk 0:02:46]}  b5 {[%clk 0:03:02]}
10. Bb3 {[%clk 0:02:46]}  Nd7 {[%clk 0:03:03]} 11. a4 {[%clk 0:02:44]}  Nb6 {[%clk 0:03:02]} 12. a5 {[%clk 0:02:43]}  Nd5 {[%clk 0:02:59]}
13. c3 {[%clk 0:02:41]}  Re8 {[%clk 0:02:57]} 14. Bc2 {[%clk 0:02:41]}  a6 {[%clk 0:02:44]} 15. Bd2 {[%clk 0:02:40]}  f5 {[%clk 0:02:41]}
16. b3 {[%clk 0:02:39]}  h6 {[%clk 0:02:34]} 17. c4 {[%clk 0:02:26]}  Nf6 {[%clk 0:02:34]} 18. Bf4 {[%clk 0:02:24]}  Ne4 {[%clk 0:02:33]}
19. Be5 {[%clk 0:02:26]}  Be6 {[%clk 0:02:20]} 20. Qd3 {[%clk 0:02:06]}  bxc4 {[%clk 0:02:03]} 21. bxc4 {[%clk 0:02:06]}  c5 {[%clk 0:01:59]}
22. Bxg7 {[%clk 0:02:02]}  Kxg7 {[%clk 0:02:00]} 23. d5 {[%clk 0:02:03]}  Bd7 {[%clk 0:02:01]} 24. Nd2 {[%clk 0:01:44]}  Rb8 {[%clk 0:01:59]}
25. Rfe1 {[%clk 0:01:41]}  Qf6 {[%clk 0:01:53]} 26. Rab1 {[%clk 0:01:36]}  Nd6 {[%clk 0:01:11]} 27. Rxe8 {[%clk 0:01:36]}  Rxe8 {[%clk 0:01:02]}
28. Nb3 {[%clk 0:01:05]}  Nb7 {[%clk 0:01:01]} 29. Qd2 {[%clk 0:00:53]}  Ba4 {[%clk 0:00:55]} 30. Na1 {[%clk 0:00:35]}  Bd7 {[%clk 0:00:51]}
31. Rxb7 {[%clk 0:00:31]}  Qxa1+ {[%clk 0:00:52]} 32. Rb1 {[%clk 0:00:30]}  Qe5 {[%clk 0:00:50]} 33. Rb6 {[%clk 0:00:24]}  Qa1+ {[%clk 0:00:44]}
34. Rb1 {[%clk 0:00:25]}  Qe5 {[%clk 0:00:45]} 35. Rb6 {[%clk 0:00:18]}  Qa1+ {[%clk 0:00:45]} 36. Rb1 {[%clk 0:00:10]}  Qe5 {[%clk 0:00:45]} 1/2-1/2

[Event "2026 Biel Blitz Open"]
[Site "Biel, CH"]
[Date "2026.07.19"]
[Round "7"]
[White "Thorfinnsson, Bjorn"]
[Black "Savitha Shri B"]
[Result "0-1"]
[Board "6"]
[TimeControl "180+2"]
[WhiteFideId "2300982"]
[BlackFideId "35061887"]
[WhiteElo "2396"]
[BlackElo "2161"]
[WhiteTitle "IM"]
[BlackTitle "IM"]
[WhiteClock "0:00:32"]
[BlackClock "0:00:41"]
[Variant "Standard"]
[EndDate "2026.07.19"]
[EndTime "13:57:18"]

1. d4 {[%clk 0:03:03]}  Nf6 {[%clk 0:03:03]} 2. Nf3 {[%clk 0:03:04]}  g6 {[%clk 0:03:04]} 3. Bg5 {[%clk 0:03:05]}  Bg7 {[%clk 0:03:05]}
4. e3 {[%clk 0:03:06]}  d5 {[%clk 0:03:06]} 5. Bd3 {[%clk 0:03:07]}  O-O {[%clk 0:03:07]} 6. Nbd2 {[%clk 0:03:09]}  c5 {[%clk 0:03:07]}
7. c3 {[%clk 0:03:10]}  Qb6 {[%clk 0:02:24]} 8. Qb3 {[%clk 0:03:05]}  Nc6 {[%clk 0:02:17]} 9. Qxb6 {[%clk 0:03:02]}  axb6 {[%clk 0:02:18]}
10. a3 {[%clk 0:03:03]}  Re8 {[%clk 0:02:07]} 11. Bf4 {[%clk 0:02:57]}  c4 {[%clk 0:01:50]} 12. Bc2 {[%clk 0:02:57]}  Nh5 {[%clk 0:01:51]}
13. Bc7 {[%clk 0:02:53]}  b5 {[%clk 0:01:53]} 14. O-O-O {[%clk 0:02:32]}  Bd7 {[%clk 0:01:47]} 15. h3 {[%clk 0:02:30]}  Rec8 {[%clk 0:01:43]}
16. Bh2 {[%clk 0:02:30]}  Bf5 {[%clk 0:01:28]} 17. e4 {[%clk 0:02:20]}  dxe4 {[%clk 0:01:27]} 18. Nxe4 {[%clk 0:02:12]}  b4 {[%clk 0:01:16]}
19. g4 {[%clk 0:01:47]}  Bxe4 {[%clk 0:01:08]} 20. Bxe4 {[%clk 0:01:47]}  Nf6 {[%clk 0:00:57]} 21. Bxc6 {[%clk 0:01:48]}  Rxc6 {[%clk 0:00:57]}
22. axb4 {[%clk 0:01:48]}  Ne4 {[%clk 0:00:57]} 23. Rhf1 {[%clk 0:01:42]}  Rf6 {[%clk 0:00:58]} 24. Nd2 {[%clk 0:01:04]}  Nxf2 {[%clk 0:00:58]}
25. Be5 {[%clk 0:00:46]}  Ra1+ {[%clk 0:00:48]} 26. Nb1 {[%clk 0:00:39]}  Bh6+ {[%clk 0:00:41]} 27. Kc2 {[%clk 0:00:32]}  Nxd1 {[%clk 0:00:41]} 0-1

[Event "2026 Biel Blitz Open"]
[Site "Biel, CH"]
[Date "2026.07.19"]
[Round "7"]
[White "Filipovic, Branko"]
[Black "Shukhman, Anna"]
[Result "0-1"]
[Board "7"]
[TimeControl "180+2"]
[WhiteFideId "14507951"]
[BlackFideId "54180058"]
[WhiteElo "2109"]
[BlackElo "2392"]
[WhiteTitle "IM"]
[BlackTitle "WGM"]
[WhiteClock "0:02:19"]
[BlackClock "0:01:50"]
[Variant "Standard"]
[EndDate "2026.07.19"]
[EndTime "13:53:03"]

1. d4 {[%clk 0:03:03]}  d5 {[%clk 0:03:03]} 2. Bf4 {[%clk 0:03:04]}  Nf6 {[%clk 0:03:04]} 3. Nf3 {[%clk 0:03:05]}  Bf5 {[%clk 0:03:05]}
4. c4 {[%clk 0:03:06]}  e6 {[%clk 0:03:04]} 5. Qb3 {[%clk 0:03:06]}  Nc6 {[%clk 0:03:03]} 6. Qxb7 {[%clk 0:02:53]}  Nb4 {[%clk 0:03:04]}
7. Na3 {[%clk 0:02:51]}  dxc4 {[%clk 0:03:03]} 8. Qxc7 {[%clk 0:02:35]}  Qxc7 {[%clk 0:02:50]} 9. Bxc7 {[%clk 0:02:36]}  Nbd5 {[%clk 0:02:51]}
10. Be5 {[%clk 0:02:29]}  Bb4+ {[%clk 0:02:05]} 11. Nd2 {[%clk 0:02:25]}  c3 {[%clk 0:01:55]} 12. bxc3 {[%clk 0:02:22]}  Bxa3 {[%clk 0:01:56]}
13. c4 {[%clk 0:02:18]}  Nb4 {[%clk 0:01:55]} 14. e4 {[%clk 0:02:19]}  Nxe4 {[%clk 0:01:50]} 0-1

[Event "2026 Biel Blitz Open"]
[Site "Biel, CH"]
[Date "2026.07.19"]
[Round "7"]
[White "Fogo Esquivel, Levi Kalani Alexander"]
[Black "Safarli, Eltaj"]
[Result "0-1"]
[Board "8"]
[TimeControl "180+2"]
[WhiteFideId "5183189"]
[BlackFideId "13402129"]
[WhiteElo "2219"]
[BlackElo "2619"]
[WhiteTitle "FM"]
[BlackTitle "GM"]
[WhiteClock "0:00:12"]
[BlackClock "0:00:26"]
[Variant "Standard"]
[EndDate "2026.07.19"]
[EndTime "13:59:17"]

1. e4 {[%clk 0:03:03]}  c5 {[%clk 0:03:03]} 2. Nf3 {[%clk 0:03:04]}  e6 {[%clk 0:03:05]} 3. d4 {[%clk 0:03:03]}  cxd4 {[%clk 0:03:06]}
4. Nxd4 {[%clk 0:03:04]}  Nc6 {[%clk 0:03:07]} 5. Nc3 {[%clk 0:03:05]}  Bc5 {[%clk 0:03:08]} 6. Nb3 {[%clk 0:03:04]}  Bb6 {[%clk 0:03:04]}
7. Bd3 {[%clk 0:03:05]}  Nge7 {[%clk 0:03:05]} 8. Qe2 {[%clk 0:03:06]}  O-O {[%clk 0:02:54]} 9. Be3 {[%clk 0:03:04]}  d5 {[%clk 0:02:55]}
10. Bxb6 {[%clk 0:03:03]}  axb6 {[%clk 0:02:56]} 11. exd5 {[%clk 0:02:57]}  exd5 {[%clk 0:02:57]} 12. O-O {[%clk 0:02:58]}  d4 {[%clk 0:02:54]}
13. Ne4 {[%clk 0:02:55]}  Bf5 {[%clk 0:02:30]} 14. Rfd1 {[%clk 0:02:49]}  Re8 {[%clk 0:02:29]} 15. Qf3 {[%clk 0:02:40]}  Qd7 {[%clk 0:02:25]}
16. Qg3 {[%clk 0:02:34]}  Bg6 {[%clk 0:02:22]} 17. Qd6 {[%clk 0:02:25]}  Qc8 {[%clk 0:02:06]} 18. Qg3 {[%clk 0:02:16]}  Rd8 {[%clk 0:01:51]}
19. a3 {[%clk 0:02:15]}  Nf5 {[%clk 0:01:46]} 20. Qf4 {[%clk 0:02:16]}  h6 {[%clk 0:01:41]} 21. Re1 {[%clk 0:02:07]}  Nfe7 {[%clk 0:01:35]}
22. Nd6 {[%clk 0:01:57]}  Qd7 {[%clk 0:01:33]} 23. Nc4 {[%clk 0:01:58]}  Nd5 {[%clk 0:01:33]} 24. Qg3 {[%clk 0:01:53]}  Bxd3 {[%clk 0:01:20]}
25. Qxd3 {[%clk 0:01:47]}  Qg4 {[%clk 0:01:21]} 26. Qg3 {[%clk 0:01:39]}  Qf5 {[%clk 0:01:20]} 27. Qd3 {[%clk 0:01:28]}  Qxd3 {[%clk 0:01:21]}
28. cxd3 {[%clk 0:01:29]}  f6 {[%clk 0:01:22]} 29. Red1 {[%clk 0:01:11]}  b5 {[%clk 0:01:17]} 30. Ncd2 {[%clk 0:01:13]}  Nf4 {[%clk 0:01:18]}
31. Nf3 {[%clk 0:01:14]}  b4 {[%clk 0:01:09]} 32. g3 {[%clk 0:01:06]}  Ne6 {[%clk 0:01:10]} 33. axb4 {[%clk 0:00:54]}  Rxa1 {[%clk 0:01:10]}
34. Rxa1 {[%clk 0:00:55]}  Nxb4 {[%clk 0:01:12]} 35. Rd1 {[%clk 0:00:55]}  g5 {[%clk 0:01:08]} 36. Kf1 {[%clk 0:00:42]}  Kf7 {[%clk 0:01:09]}
37. Ke2 {[%clk 0:00:42]}  g4 {[%clk 0:00:58]} 38. Nh4 {[%clk 0:00:39]}  Rd5 {[%clk 0:01:00]} 39. f4 {[%clk 0:00:36]}  Nc6 {[%clk 0:00:57]}
40. Nd2 {[%clk 0:00:33]}  Rb5 {[%clk 0:00:58]} 41. Nc4 {[%clk 0:00:34]}  Rb3 {[%clk 0:00:54]} 42. Rd2 {[%clk 0:00:31]}  h5 {[%clk 0:00:55]}
43. Nd6+ {[%clk 0:00:28]}  Ke7 {[%clk 0:00:54]} 44. Ne4 {[%clk 0:00:29]}  Ng7 {[%clk 0:00:45]} 45. Rc2 {[%clk 0:00:24]}  Rb5 {[%clk 0:00:43]}
46. Nd2 {[%clk 0:00:21]}  Ne6 {[%clk 0:00:40]} 47. Ne4 {[%clk 0:00:22]}  Nb4 {[%clk 0:00:39]} 48. Rc4 {[%clk 0:00:15]}  Na6 {[%clk 0:00:38]}
49. Rc2 {[%clk 0:00:17]}  Nb4 {[%clk 0:00:37]} 50. Rc4 {[%clk 0:00:18]}  Nd5 {[%clk 0:00:35]} 51. Nf5+ {[%clk 0:00:17]}  Kd7 {[%clk 0:00:33]}
52. Nxd4 {[%clk 0:00:10]}  Rxb2+ {[%clk 0:00:33]} 53. Nd2 {[%clk 0:00:11]}  b5 {[%clk 0:00:25]} 54. Rc2 {[%clk 0:00:12]}  Nxd4+ {[%clk 0:00:26]} 0-1

[Event "2026 Biel Blitz Open"]
[Site "Biel, CH"]
[Date "2026.07.19"]
[Round "7"]
[White "Rohrer, Christophe"]
[Black "Gloeckler, Christian"]
[Result "0-1"]
[Board "9"]
[TimeControl "180+2"]
[WhiteFideId "1326546"]
[BlackFideId "34608966"]
[WhiteElo "2216"]
[BlackElo "2513"]
[WhiteTitle "FM"]
[BlackTitle "IM"]
[WhiteClock "0:00:04"]
[BlackClock "0:01:02"]
[Variant "Standard"]
[EndDate "2026.07.19"]
[EndTime "13:57:43"]

1. e4 {[%clk 0:03:03]}  c5 {[%clk 0:03:03]} 2. Nf3 {[%clk 0:03:04]}  d6 {[%clk 0:03:05]} 3. Bc4 {[%clk 0:03:05]}  Nf6 {[%clk 0:03:05]}
4. d3 {[%clk 0:03:06]}  e6 {[%clk 0:03:06]} 5. O-O {[%clk 0:03:06]}  Be7 {[%clk 0:03:07]} 6. Re1 {[%clk 0:03:05]}  O-O {[%clk 0:03:06]}
7. Nbd2 {[%clk 0:03:02]}  Nc6 {[%clk 0:03:05]} 8. a4 {[%clk 0:02:56]}  a6 {[%clk 0:02:59]} 9. Bb3 {[%clk 0:02:51]}  Na5 {[%clk 0:02:57]}
10. Ba2 {[%clk 0:02:49]}  b5 {[%clk 0:02:58]} 11. axb5 {[%clk 0:02:40]}  axb5 {[%clk 0:02:58]} 12. c3 {[%clk 0:02:39]}  Bb7 {[%clk 0:02:57]}
13. d4 {[%clk 0:02:22]}  cxd4 {[%clk 0:02:58]} 14. cxd4 {[%clk 0:02:22]}  Nc6 {[%clk 0:02:58]} 15. Nb3 {[%clk 0:02:01]}  Nb4 {[%clk 0:02:49]}
16. Bb1 {[%clk 0:02:01]}  Rxa1 {[%clk 0:02:49]} 17. Nxa1 {[%clk 0:02:02]}  Qa8 {[%clk 0:02:50]} 18. Nb3 {[%clk 0:01:43]}  Bxe4 {[%clk 0:02:44]}
19. Bxe4 {[%clk 0:01:42]}  Nxe4 {[%clk 0:02:45]} 20. Qe2 {[%clk 0:01:37]}  Qd5 {[%clk 0:02:33]} 21. Qxe4 {[%clk 0:01:31]}  Qxb3 {[%clk 0:02:33]}
22. Qb7 {[%clk 0:01:31]}  Nd5 {[%clk 0:02:27]} 23. Nd2 {[%clk 0:01:07]}  Qb4 {[%clk 0:02:15]} 24. Re4 {[%clk 0:00:38]}  Bf6 {[%clk 0:02:09]}
25. Nf3 {[%clk 0:00:35]}  Qc4 {[%clk 0:01:59]} 26. Re1 {[%clk 0:00:33]}  Nb4 {[%clk 0:01:31]} 27. Be3 {[%clk 0:00:29]}  Nd3 {[%clk 0:01:28]}
28. Rb1 {[%clk 0:00:26]}  Qc2 {[%clk 0:01:24]} 29. Nd2 {[%clk 0:00:23]}  b4 {[%clk 0:01:15]} 30. Qe4 {[%clk 0:00:19]}  d5 {[%clk 0:01:15]}
31. Qf3 {[%clk 0:00:19]}  Nxb2 {[%clk 0:01:10]} 32. Ra1 {[%clk 0:00:11]}  b3 {[%clk 0:01:06]} 33. g4 {[%clk 0:00:12]}  Nc4 {[%clk 0:01:04]}
34. Nxc4 {[%clk 0:00:06]}  dxc4 {[%clk 0:01:05]} 35. g5 {[%clk 0:00:07]}  b2 {[%clk 0:01:05]} 36. Rf1 {[%clk 0:00:04]}  b1=Q {[%clk 0:01:02]} 0-1

[Event "2026 Biel Blitz Open"]
[Site "Biel, CH"]
[Date "2026.07.19"]
[Round "7"]
[White "Schweizer, Simon"]
[Black "Ling, Chenxuan"]
[Result "0-1"]
[Board "10"]
[TimeControl "180+2"]
[WhiteFideId "1325361"]
[BlackFideId "30983118"]
[WhiteElo "2182"]
[BlackElo "2235"]
[BlackTitle "CM"]
[WhiteClock "0:00:37"]
[BlackClock "0:00:18"]
[Variant "Standard"]
[EndDate "2026.07.19"]
[EndTime "13:59:43"]

1. e4 {[%clk 0:03:03]}  c5 {[%clk 0:03:03]} 2. Nf3 {[%clk 0:03:04]}  Nc6 {[%clk 0:03:04]} 3. Bb5 {[%clk 0:03:05]}  g6 {[%clk 0:03:05]}
4. O-O {[%clk 0:03:06]}  Bg7 {[%clk 0:03:06]} 5. Nc3 {[%clk 0:03:06]}  e5 {[%clk 0:03:07]} 6. d3 {[%clk 0:03:03]}  Nge7 {[%clk 0:03:07]}
7. a3 {[%clk 0:03:04]}  d6 {[%clk 0:03:08]} 8. h3 {[%clk 0:03:05]}  O-O {[%clk 0:03:08]} 9. Rb1 {[%clk 0:03:06]}  a6 {[%clk 0:03:08]}
10. Bc4 {[%clk 0:03:06]}  b5 {[%clk 0:03:07]} 11. Ba2 {[%clk 0:03:07]}  h6 {[%clk 0:03:00]} 12. b4 {[%clk 0:03:06]}  cxb4 {[%clk 0:03:00]}
13. axb4 {[%clk 0:03:07]}  Kh7 {[%clk 0:03:01]} 14. Nd5 {[%clk 0:03:01]}  f5 {[%clk 0:02:59]} 15. c4 {[%clk 0:03:02]}  bxc4 {[%clk 0:02:53]}
16. Bxc4 {[%clk 0:03:02]}  Rb8 {[%clk 0:02:53]} 17. Bd2 {[%clk 0:03:02]}  Nxd5 {[%clk 0:02:54]} 18. Bxd5 {[%clk 0:03:00]}  Ne7 {[%clk 0:02:53]}
19. Ba2 {[%clk 0:02:59]}  Bd7 {[%clk 0:02:51]} 20. Bc3 {[%clk 0:02:54]}  Bc6 {[%clk 0:02:47]} 21. Re1 {[%clk 0:02:54]}  Qd7 {[%clk 0:02:35]}
22. Nd2 {[%clk 0:02:47]}  Rbe8 {[%clk 0:02:24]} 23. Nc4 {[%clk 0:02:45]}  Qc7 {[%clk 0:02:20]} 24. Rc1 {[%clk 0:02:44]}  Qb8 {[%clk 0:02:06]}
25. Na5 {[%clk 0:02:37]}  Bb5 {[%clk 0:02:03]} 26. d4 {[%clk 0:02:35]}  fxe4 {[%clk 0:02:01]} 27. dxe5 {[%clk 0:02:36]}  d5 {[%clk 0:01:59]}
28. e6 {[%clk 0:02:33]}  Qb6 {[%clk 0:01:46]} 29. Qd2 {[%clk 0:02:13]}  d4 {[%clk 0:01:36]} 30. Ba1 {[%clk 0:02:13]}  e3 {[%clk 0:01:00]}
31. fxe3 {[%clk 0:02:13]}  Nf5 {[%clk 0:01:01]} 32. exd4 {[%clk 0:02:04]}  Nxd4 {[%clk 0:01:00]} 33. Kh1 {[%clk 0:02:00]}  Nxe6 {[%clk 0:00:39]}
34. Bxg7 {[%clk 0:01:45]}  Nxg7 {[%clk 0:00:49]} 35. Rxe8 {[%clk 0:01:44]}  Rxe8 {[%clk 0:00:50]} 36. Bb1 {[%clk 0:01:27]}  Re2 {[%clk 0:00:44]}
37. Qf4 {[%clk 0:01:18]}  Qe6 {[%clk 0:00:34]} 38. Qg3 {[%clk 0:01:13]}  Nh5 {[%clk 0:00:20]} 39. Qc7+ {[%clk 0:01:11]}  Ng7 {[%clk 0:00:19]}
40. Qg3 {[%clk 0:01:07]}  Nh5 {[%clk 0:00:19]} 41. Qc3 {[%clk 0:00:58]}  Qd5 {[%clk 0:00:13]} 42. Rg1 {[%clk 0:00:52]}  Qd6 {[%clk 0:00:09]}
43. Rc1 {[%clk 0:00:45]}  Ng3+ {[%clk 0:00:10]} 44. Kg1 {[%clk 0:00:47]}  Re7 {[%clk 0:00:08]} 45. Qc5 {[%clk 0:00:30]}  Ne2+ {[%clk 0:00:06]}
46. Kh1 {[%clk 0:00:31]}  Ng3+ {[%clk 0:00:07]} 47. Kg1 {[%clk 0:00:33]}  Qxc5+ {[%clk 0:00:07]} 48. Rxc5 {[%clk 0:00:33]}  Re1+ {[%clk 0:00:08]}
49. Kh2 {[%clk 0:00:33]}  Nf1+ {[%clk 0:00:09]} 50. Kg1 {[%clk 0:00:35]}  Rxb1 {[%clk 0:00:10]} 51. Rc7+ {[%clk 0:00:36]}  Kg8 {[%clk 0:00:11]}
52. Rc8+ {[%clk 0:00:38]}  Kf7 {[%clk 0:00:11]} 53. Rc7+ {[%clk 0:00:39]}  Ke6 {[%clk 0:00:09]} 54. Rg7 {[%clk 0:00:36]}  Kf6 {[%clk 0:00:14]}
55. Rh7 {[%clk 0:00:37]}  h5 {[%clk 0:00:15]} 56. Rb7 {[%clk 0:00:37]}  Kg5 {[%clk 0:00:15]} 57. Kf2 {[%clk 0:00:38]}  Nd2 {[%clk 0:00:15]}
58. Rb6 {[%clk 0:00:35]}  Rxb4 {[%clk 0:00:16]} 59. Nc6 {[%clk 0:00:37]}  Rb2 {[%clk 0:00:17]} 60. Nd4 {[%clk 0:00:37]}  Nc4+ {[%clk 0:00:18]} 0-1

[Event "2026 Biel Blitz Open"]
[Site "Biel, CH"]
[Date "2026.07.19"]
[Round "7"]
[White "Amonatov, Farrukh"]
[Black "Ragavan, Samarth Rajesh"]
[Result "1-0"]
[Board "11"]
[TimeControl "180+2"]
[WhiteFideId "14700077"]
[BlackFideId "39918106"]
[WhiteElo "2585"]
[BlackElo "2101"]
[WhiteTitle "GM"]
[WhiteClock "0:01:46"]
[BlackClock "0:00:48"]
[Variant "Standard"]
[EndDate "2026.07.19"]
[EndTime "13:56:11"]

1. e4 {[%clk 0:03:03]}  d5 {[%clk 0:03:03]} 2. exd5 {[%clk 0:03:04]}  Qxd5 {[%clk 0:03:04]} 3. Nc3 {[%clk 0:03:05]}  Qa5 {[%clk 0:03:05]}
4. d4 {[%clk 0:03:05]}  Nf6 {[%clk 0:03:06]} 5. Nf3 {[%clk 0:03:06]}  Bf5 {[%clk 0:03:06]} 6. Bc4 {[%clk 0:03:07]}  e6 {[%clk 0:03:07]}
7. Bd2 {[%clk 0:03:08]}  Bb4 {[%clk 0:03:08]} 8. a3 {[%clk 0:03:08]}  Bxc3 {[%clk 0:03:09]} 9. Bxc3 {[%clk 0:03:09]}  Qb6 {[%clk 0:03:10]}
10. O-O {[%clk 0:03:08]}  O-O {[%clk 0:03:11]} 11. Qe2 {[%clk 0:03:05]}  Nc6 {[%clk 0:03:10]} 12. Rad1 {[%clk 0:03:01]}  Rad8 {[%clk 0:03:06]}
13. h3 {[%clk 0:02:57]}  Rfe8 {[%clk 0:03:04]} 14. Rfe1 {[%clk 0:02:57]}  h6 {[%clk 0:03:00]} 15. Bb3 {[%clk 0:02:56]}  Be4 {[%clk 0:02:54]}
16. Ba4 {[%clk 0:02:34]}  Re7 {[%clk 0:02:29]} 17. Bxc6 {[%clk 0:02:18]}  Qxc6 {[%clk 0:02:26]} 18. Ne5 {[%clk 0:02:18]}  Qd5 {[%clk 0:02:23]}
19. f3 {[%clk 0:02:16]}  Bh7 {[%clk 0:02:11]} 20. Bb4 {[%clk 0:02:16]}  Rde8 {[%clk 0:01:52]} 21. c4 {[%clk 0:02:13]}  Qd8 {[%clk 0:01:53]}
22. Bxe7 {[%clk 0:02:14]}  Qxe7 {[%clk 0:01:54]} 23. Qf2 {[%clk 0:02:10]}  Rd8 {[%clk 0:01:54]} 24. d5 {[%clk 0:02:10]}  a6 {[%clk 0:01:38]}
25. dxe6 {[%clk 0:02:08]}  fxe6 {[%clk 0:01:40]} 26. Qe3 {[%clk 0:02:04]}  Rd6 {[%clk 0:01:29]} 27. Ng4 {[%clk 0:01:58]}  Rxd1 {[%clk 0:01:16]}
28. Rxd1 {[%clk 0:01:59]}  Nxg4 {[%clk 0:01:16]} 29. hxg4 {[%clk 0:01:59]}  Bg6 {[%clk 0:01:15]} 30. Qe5 {[%clk 0:01:58]}  c6 {[%clk 0:01:13]}
31. b4 {[%clk 0:01:50]}  Bf7 {[%clk 0:01:07]} 32. Qb8+ {[%clk 0:01:49]}  Kh7 {[%clk 0:01:08]} 33. Qd8 {[%clk 0:01:50]}  Qxd8 {[%clk 0:00:59]}
34. Rxd8 {[%clk 0:01:50]}  e5 {[%clk 0:01:00]} 35. c5 {[%clk 0:01:50]}  Bc4 {[%clk 0:00:56]} 36. Rd7 {[%clk 0:01:46]}  Kg6 {[%clk 0:00:57]}
37. Rxb7 {[%clk 0:01:47]}  Kf6 {[%clk 0:00:55]} 38. a4 {[%clk 0:01:46]}  g5 {[%clk 0:00:48]} 39. Rb6 {[%clk 0:01:46]} 1-0